lending/lending_fUSD_20250121
["ID","MTS","AMOUNT","RATE_DAILY","PERIOD"]
[349829945,1737454247053,-500.0,0.00019939,2]
[349829946,1737454247064,-766.02,0.00019939,2]
[349829947,1737454247074,-1744.71,0.00019939,2]
[349829948,1737454247087,-500.0,0.00019939,2]
[349829949,1737454247103,-1853.93,0.00019939,2]
[349829950,1737454247118,-500.0,0.00019939,2]
[349829951,1737454247131,-756.56,0.00019939,2]
[349829952,1737454247142,-500.0,0.00019939,2]
[349829953,1737454247152,-1042.93,0.00019939,2]
[349829954,1737454247163,-500.0,0.00019939,2]
[349829955,1737454247176,-500.0,0.00019939,2]
[349829956,1737454247187,-2400.05,0.00019939,2]
[349829957,1737454247199,-501.62,0.00019939,2]
[349829958,1737454247210,-767.55,0.00019939,2]
[349829959,1737454247222,-500.0,0.00019939,2]
[349829960,1737454247233,-500.0,0.00019939,2]
[349829961,1737454247243,-500.0,0.00019939,2]
[349829962,1737454247254,-500.0,0.00019939,2]
[349829963,1737454247265,-900.87,0.00019939,2]
[349829964,1737454247276,-500.0,0.00019939,2]
[349829965,1737454247286,-535.43819179,0.00019939,2]
[349829966,1737454247296,-500.0,0.00019939,2]
[349829967,1737454247307,-500.0,0.00019939,2]
[349829968,1737454247317,-500.0,0.00019939,2]
[349829969,1737454247328,-500.0,0.00019939,2]
[349829970,1737454247338,-1228.88,0.00019939,2]
[349829971,1737454247348,-500.0,0.00019939,2]
[349829972,1737454247363,-503.73,0.00019939,2]
[349829973,1737454247374,-500.0,0.00019939,2]
[349829974,1737454247385,-500.0,0.00019939,2]
[349829975,1737454247395,-1077.74,0.00019939,2]
[349829976,1737454247406,-500.0,0.00019939,2]
[349829977,1737454247416,-500.0,0.00019939,2]
[349829978,1737454247427,-500.0,0.00019939,2]
[349829979,1737454247438,-500.0,0.00019939,2]
[349829980,1737454247450,-500.0,0.00019939,2]
[349829981,1737454247461,-500.0,0.00019939,2]
[349829982,1737454247474,-500.0,0.00019939,2]
[349829983,1737454247486,-500.0,0.00019939,2]
[349829984,1737454247497,-500.0,0.00019939,2]
[349829985,1737454247508,-384.91,0.00019939,2]
[349829986,1737454247519,-651.09,0.00019939,2]
[349829987,1737454247530,-500.0,0.00019939,2]
[349829988,1737454247541,-500.0,0.00019939,2]
[349829989,1737454247553,-500.0,0.00019939,2]
[349829990,1737454247564,-1171.97,0.00019939,2]
[349829991,1737454247574,-500.0,0.00019939,2]
[349829992,1737454247586,-500.0,0.00019939,2]
[349829993,1737454247598,-500.0,0.00019939,2]
[349829994,1737454247617,-500.0,0.00019939,2]
[349829995,1737454247628,-1834.34,0.00019939,2]
[349829996,1737454247640,-150.0,0.00019964,2]
[349829997,1737454247652,-480.7502708,0.00019969,2]
[349829998,1737454247664,-500.0,0.00019999,2]
[349829999,1737454247675,-500.0,0.00019999,2]
[349830000,1737454247686,-1915.55,0.00019999,2]
[349830001,1737454247697,-500.0,0.00019999,2]
[349830002,1737454247709,-636.48,0.00019999,2]
[349830003,1737454247720,-769.83,0.00019999,2]
[349830004,1737454247732,-500.0,0.00019999,2]
[349830005,1737454247742,-729.14,0.00019999,2]
[349830006,1737454247753,-500.0,0.00019999,2]
[349830007,1737454247763,-500.0,0.00019999,2]
[349830008,1737454247773,-500.0,0.00019999,2]
[349830009,1737454247784,-12557.82,0.0002,3]
[349830010,1737454247795,-500.0,0.0002,2]
[349830011,1737454247806,-500.0,0.0002,2]
[349830012,1737454247816,-500.0,0.0002,2]
[349830013,1737454247827,-500.0,0.0002,2]
[349830014,1737454247838,-500.0,0.0002,2]
[349830015,1737454247849,-300.0,0.0002,2]
[349830016,1737454247864,-500.0,0.0002,2]
[349830017,1737454247875,-500.0,0.0002,2]
[349830018,1737454247885,-500.0,0.0002,2]
[349830019,1737454247895,-500.0,0.0002,2]
[349830020,1737454247904,-500.0,0.0002,2]
[349830021,1737454247914,-500.0,0.0002,2]
[349830022,1737454247924,-500.0,0.0002,2]
[349830023,1737454247934,-500.0,0.0002,2]
[349830024,1737454247945,-500.0,0.0002,2]
[349830025,1737454247957,-500.0,0.0002,2]
[349830026,1737454247967,-500.0,0.0002,2]
[349830027,1737454247977,-717.29,0.0002,2]
[349830028,1737454247987,-500.0,0.0002,2]
[349830029,1737454247997,-500.0,0.0002,2]
[349830030,1737454248008,-500.0,0.0002,2]
[349830031,1737454248018,-992.7,0.0002,2]
[349830032,1737454248031,-500.0,0.0002,2]
[349830033,1737454248044,-500.0,0.0002,2]
[349830034,1737454248056,-500.0,0.0002,2]
[349830035,1737454248068,-500.0,0.0002,2]
[349830036,1737454248079,-500.0,0.0002,2]
[349830037,1737454248297,-500.0,0.0002,2]
[349830038,1737454248308,-500.0,0.0002,2]
[349830039,1737454248320,-500.0,0.0002,2]
[349830040,1737454248332,-500.0,0.0002,2]
[349830041,1737454248342,-500.0,0.0002,2]
[349830042,1737454248353,-500.0,0.0002,2]
[349830043,1737454248367,-500.0,0.0002,2]
[349830044,1737454248377,-264.50442501,0.0002,2]
[349830045,1737454248388,-500.0,0.0002,2]
[349830046,1737454248399,-515.83184728,0.0002,2]
[349830047,1737454248409,-500.0,0.0002,2]
[349830048,1737454248420,-500.0,0.0002,2]
[349830049,1737454248431,-218.73303148,0.0002,2]
[349830050,1737454248441,-500.0,0.0002,2]
[349830051,1737454248452,-500.0,0.0002,2]
[349830052,1737454248464,-500.0,0.0002,2]
[349830053,1737454248474,-500.0,0.0002,2]
[349830054,1737454248484,-500.0,0.0002,2]
[349830055,1737454248495,-350.14784108,0.0002,2]
[349830056,1737454248505,-500.0,0.0002,2]
[349830057,1737454248516,-500.0,0.0002,2]
[349830058,1737454248527,-22198.83544645,0.00020019,2]
[349830059,1737454248537,-313.16134624,0.00020022,2]
[349830060,1737454248548,-448.0,0.00020027,2]
[349830061,1737454248559,-480.7502708,0.00020107,2]
[349830062,1737454248570,-965.93,0.00020172,2]
[349830063,1737454248580,-663.48,0.00020172,2]
[349830064,1737454248591,-500.0,0.00020172,2]
[349830065,1737454248601,-500.0,0.00020172,2]
[349830066,1737454248618,-966.35,0.00020172,2]
[349830067,1737454248630,-1279.46,0.00020172,2]
[349830068,1737454248641,-939.57,0.00020172,2]
[349830069,1737454248652,-1512.95,0.00020172,2]
[349830070,1737454248664,-500.0,0.00020172,2]
[349830071,1737454248674,-1074.91,0.00020172,2]
[349830072,1737454248685,-710.24,0.00020172,2]
[349830073,1737454248695,-525.3336474,0.00020172,2]
[349830074,1737454248706,-833.97,0.00020172,2]
[349830075,1737454248716,-1256.66,0.00020172,2]
[349830076,1737454248727,-1895.95,0.00020172,2]
[349830077,1737454248737,-702.49,0.00020172,2]
[349830078,1737454248748,-665.98,0.00020172,2]
[349830079,1737454248758,-500.0,0.00020172,2]
[349830080,1737454248768,-1791.51,0.00020172,2]
[349830081,1737454248779,-500.0,0.00020172,2]
[349830082,1737454248789,-500.0,0.00020172,2]
[349830083,1737454248800,-500.0,0.00020172,2]
[349830084,1737454248810,-500.0,0.00020172,2]
[349830085,1737454248820,-500.0,0.00020172,2]
[349830086,1737454248830,-970.65,0.00020172,2]
[349830087,1737454248843,-1591.11,0.00020172,2]
[349830088,1737454248866,-500.0,0.00020172,2]
[349830089,1737454248887,-773.39357062,0.00020173,2]
[349830090,1737454248897,-150.0,0.00020187,2]
[349830091,1737454248907,-7720.06009072,0.00020201,2]
[349830092,1737454248917,-525.43994621,0.00020211,2]
[349830093,1737454248927,-23138.04026207,0.00020211,4]
[349830094,1737454248938,-500.0,0.00020211,2]
[349830095,1737454248948,-500.0,0.00020211,2]
[349830096,1737454248958,-500.0,0.00020211,2]
[349830097,1737454248968,-1444.87,0.00020212,2]
[349830098,1737454248979,-931.98,0.00020212,2]
[349830099,1737454248990,-500.0,0.00020212,2]
[349830100,1737454249000,-1233.88,0.00020212,2]
[349830101,1737454249011,-500.0,0.00020212,2]
[349830102,1737454249021,-557.087348,0.00020212,2]
[349830103,1737454249034,-5777.13,0.00020212,2]
[349830104,1737454249046,-500.0,0.00020212,2]
[349830105,1737454249057,-807.59,0.00020212,2]
[349830106,1737454249069,-500.0,0.00020212,2]
[349830107,1737454249079,-354.390277,0.00020212,2]
[349830108,1737454249090,-1150.51,0.00020212,2]
[349830109,1737454249101,-527.99,0.00020212,2]
[349830110,1737454249116,-998.51,0.00020212,2]
[349830111,1737454249126,-639.84,0.00020212,2]
[349830112,1737454249139,-808.41,0.00020212,2]
[349830113,1737454249150,-500.0,0.00020212,2]
[349830114,1737454249161,-500.0,0.00020212,2]
[349830115,1737454249172,-1883.4,0.00020212,2]
[349830116,1737454249183,-1189.6,0.00020212,2]
[349830117,1737454249195,-670.62,0.00020212,2]
[349830118,1737454249206,-824.54,0.00020212,2]
[349830119,1737454249217,-1536.37,0.00020212,2]
[349830120,1737454249228,-1914.15,0.00020212,2]
[349830121,1737454249239,-500.0,0.00020212,2]
[349830122,1737454249250,-1038.28,0.00020212,2]
[349830123,1737454249260,-719.19,0.00020212,2]
[349830124,1737454249270,-1814.31,0.00020212,2]
[349830125,1737454249281,-641.4,0.00020212,2]
[349830126,1737454249292,-632.0,0.00020212,2]
[349830127,1737454249302,-507.76,0.00020212,2]
[349830128,1737454249312,-500.0,0.00020213,2]
[349830129,1737454249323,-500.0,0.00020213,2]
[349830130,1737454249333,-649.94,0.00020213,2]
[349830131,1737454249343,-500.0,0.00020213,2]
[349830132,1737454249353,-500.0,0.00020213,2]
[349830133,1737454249369,-500.0,0.00020213,2]
[349830134,1737454249379,-500.0,0.00020213,2]
[349830135,1737454249389,-530.19,0.00020213,2]
[349830136,1737454249399,-500.0,0.00020213,2]
[349830137,1737454249409,-500.0,0.00020213,2]
[349830138,1737454249419,-500.0,0.00020213,2]
[349830139,1737454249429,-177.30735326,0.00020213,2]
[349830140,1737454249439,-500.0,0.00020213,2]
[349830141,1737454249449,-500.0,0.00020213,2]
[349830142,1737454249459,-500.0,0.00020213,2]
[349830143,1737454249469,-500.0,0.00020213,2]
[349830144,1737454249479,-500.0,0.00020213,2]
[349830145,1737454249490,-500.0,0.00020213,2]
[349830146,1737454249503,-500.0,0.00020213,2]
[349830147,1737454249512,-500.0,0.00020213,2]
[349830148,1737454249522,-316.17306934,0.00020213,2]
[349830149,1737454249532,-729.23,0.00020213,2]
[349830150,1737454249541,-500.0,0.00020213,2]
[349830151,1737454249551,-500.0,0.00020213,2]
[349830152,1737454249561,-594.6,0.00020213,2]
[349830153,1737454249571,-500.0,0.00020213,2]
[349830154,1737454249581,-500.0,0.00020213,2]
[349830155,1737454249590,-6.47706551,0.00020213,2]
[349830156,1737454249818,-500.0,0.00019937,2]
[349830157,1737454249829,-493.52293449,0.00020213,2]
[349830158,1737454249838,-500.0,0.00020213,2]
[349830159,1737454249848,-500.0,0.00020213,2]
[349830160,1737454249861,-500.0,0.00020213,2]
[349830161,1737454249871,-500.0,0.00020213,2]
[349830162,1737454249880,-500.0,0.00020213,2]
[349830163,1737454249890,-500.0,0.00020213,2]
[349830164,1737454249899,-500.0,0.00020213,2]
[349830165,1737454249908,-559.65,0.00020213,2]
[349830166,1737454249917,-500.0,0.00020213,2]
[349830167,1737454249927,-1358.41,0.00020213,2]
[349830168,1737454249936,-500.0,0.00020213,2]
[349830169,1737454249946,-515.52,0.00020213,2]
[349830170,1737454249955,-500.0,0.00020213,2]
[349830171,1737454249964,-500.0,0.00020213,2]
[349830172,1737454249974,-516.34309321,0.00020213,2]
[349830173,1737454249983,-513.21653149,0.00020213,2]
[349830174,1737454249992,-674.46,0.00020213,2]
[349830175,1737454250002,-500.0,0.00020213,2]
[349830176,1737454250011,-539.57,0.00020213,2]
[349830177,1737454250020,-500.0,0.00020213,2]
[349830178,1737454250030,-173.47290345,0.00020213,2]
[349830179,1737454250039,-590.77,0.00020213,2]
[349830180,1737454250049,-397.43622703,0.00020213,2]
[349830181,1737454250058,-675.22,0.00020213,2]
[349830182,1737454250068,-500.0,0.00020213,2]
[349830183,1737454250078,-1348.15,0.00020213,2]
[349830184,1737454250091,-500.0,0.00020213,2]
[349830185,1737454250101,-500.0,0.00020213,2]
[349830186,1737454250111,-824.53,0.00020213,2]
[349830187,1737454250121,-500.0,0.00020213,2]
[349830188,1737454250132,-500.0,0.00020213,2]
[349830189,1737454250141,-500.0,0.00020213,2]
[349830190,1737454250150,-1270.57,0.00020213,2]
[349830191,1737454250160,-500.0,0.00020213,2]
[349830192,1737454250171,-500.0,0.00020213,2]
[349830193,1737454250180,-766.02,0.00020213,2]
[349830194,1737454250189,-1744.71,0.00020213,2]
[349830195,1737454250198,-500.0,0.00020213,2]
[349830196,1737454250207,-1853.93,0.00020213,2]
[349830197,1737454250216,-500.0,0.00020213,2]
[349830198,1737454250225,-756.56,0.00020213,2]
[349830199,1737454250235,-500.0,0.00020213,2]
[349830200,1737454250244,-1042.93,0.00020213,2]
[349830201,1737454250254,-500.0,0.00020213,2]
[349830202,1737454250263,-500.0,0.00020213,2]
[349830203,1737454250272,-2400.05,0.00020213,2]
[349830204,1737454250281,-297.75412539,0.00020213,2]
[349830205,1737454250293,-203.86587461,0.00020213,2]
[349830206,1737454250302,-767.55,0.00020213,2]
[349830207,1737454250312,-500.0,0.00020213,2]
[349830208,1737454250321,-500.0,0.00020213,2]
[349830209,1737454250330,-500.0,0.00020213,2]
[349830210,1737454250340,-500.0,0.00020213,2]
[349830211,1737454250349,-900.87,0.00020213,2]
[349830212,1737454250360,-500.0,0.00020213,2]
[349830213,1737454250369,-500.0,0.00020213,2]
[349830214,1737454250379,-500.0,0.00020213,2]
[349830215,1737454250388,-500.0,0.00020213,2]
[349830216,1737454250398,-500.0,0.00020213,2]
[349830217,1737454250407,-1228.88,0.00020213,2]
[349830218,1737454250416,-592.61071851,0.00020213,2]
[349830219,1737454250425,-503.73,0.00020213,2]
[349830220,1737454250434,-500.0,0.00020213,2]
[349830221,1737454250443,-500.0,0.00020213,2]
[349830222,1737454250453,-1077.74,0.00020213,2]
[349830223,1737454250462,-251.62710367,0.00020213,2]
[349830224,1737454250472,-500.0,0.00020213,2]
[349830225,1737454250481,-500.0,0.00020213,2]
[349830226,1737454250490,-500.0,0.00020213,2]
[349830227,1737454250500,-500.0,0.00020213,2]
[349830228,1737454250509,-500.0,0.00020213,2]
[349830229,1737454250519,-38.12630321,0.00020213,2]
[349830230,1737454250531,-461.87369679,0.00020213,2]
[349830231,1737454250542,-500.0,0.00020213,2]
[349830232,1737454250551,-500.0,0.00020213,2]
[349830233,1737454250560,-651.09,0.00020213,2]
[349830234,1737454250569,-500.0,0.00020213,2]
[349830235,1737454250578,-500.0,0.00020213,2]
[349830236,1737454250588,-500.0,0.00020213,2]
[349830237,1737454250598,-1171.97,0.00020213,2]
[349830238,1737454250607,-500.0,0.00020213,2]
[349830239,1737454250617,-500.0,0.00020213,2]
[349830240,1737454250626,-500.0,0.00020213,2]
[349830241,1737454250636,-500.0,0.00020213,2]
[349830242,1737454250691,-1834.34,0.00020213,2]
[349830243,1737454250700,-761.41185309,0.00020214,2]
[349830244,1737454250710,-957.07,0.00020227,2]
[349830245,1737454250720,-677.87,0.00020227,2]
[349830246,1737454250729,-173.07,0.00020243,2]
[349830247,1737454250738,-480.7502708,0.00020245,2]
[349830248,1737454250748,-500.0,0.00020273,2]
[349830249,1737454250757,-500.0,0.00020273,2]
[349830250,1737454250766,-500.0,0.00020273,2]
[349830251,1737454250775,-500.0,0.00020273,2]
[349830252,1737454250784,-500.0,0.00020273,2]
[349830253,1737454250793,-300.0,0.00020273,2]
[349830254,1737454250802,-500.0,0.00020273,2]
[349830255,1737454250811,-500.0,0.00020273,2]
[349830256,1737454250820,-500.0,0.00020273,2]
[349830257,1737454250830,-500.0,0.00020273,2]
[349830258,1737454250839,-500.0,0.00020273,2]
[349830259,1737454250849,-500.0,0.00020273,2]
[349830260,1737454250862,-500.0,0.00020273,2]
[349830261,1737454250871,-500.0,0.00020273,2]
[349830262,1737454250880,-640.13218415,0.00020273,2]
[349830263,1737454250890,-500.0,0.00020273,2]
[349830264,1737454250899,-717.29,0.00020273,2]
[349830265,1737454250908,-500.0,0.00020273,2]
[349830266,1737454250918,-500.0,0.00020273,2]
[349830267,1737454250927,-500.0,0.00020273,2]
[349830268,1737454250936,-992.7,0.00020273,2]
[349830269,1737454250945,-500.0,0.00020273,2]
[349830270,1737454250954,-500.0,0.00020273,2]
[349830271,1737454250963,-500.0,0.00020273,2]
[349830272,1737454250972,-500.0,0.00020273,2]
[349830273,1737454250981,-500.0,0.00020273,2]
[349830274,1737454250990,-500.0,0.00020273,2]
[349830275,1737454250999,-500.0,0.00020273,2]
[349830276,1737454251009,-500.0,0.00020273,2]
[349830277,1737454251018,-500.0,0.00020273,2]
[349830278,1737454251028,-500.0,0.00020273,2]
[349830279,1737454251037,-500.0,0.00020273,2]
[349830280,1737454251046,-500.0,0.00020273,2]
[349830281,1737454251055,-500.0,0.00020273,2]
[349830282,1737454251065,-222.72338611,0.00020273,2]
[349830283,1737454251074,-500.0,0.00020273,2]
[349830284,1737454251084,-500.0,0.00020273,2]
[349830285,1737454251094,-500.0,0.00020273,2]
[349830286,1737454251108,-274.17,0.00020273,2]
[349830287,1737454251117,-515.63698826,0.00020273,2]
[349830288,1737454251126,-500.0,0.00020273,2]
[349830289,1737454251135,-500.0,0.00020273,2]
[349830290,1737454251145,-433.01904227,0.00020273,2]
[349830291,1737454251155,-500.0,0.00020273,2]
[349830292,1737454251164,-500.0,0.00020273,2]
[349830293,1737454251173,-1915.55,0.00020273,2]
[349830294,1737454251183,-500.0,0.00020273,2]
[349830295,1737454251192,-636.48,0.00020273,2]
[349830296,1737454251201,-769.83,0.00020273,2]
[349830297,1737454251210,-500.0,0.00020273,2]
[349830298,1737454251219,-729.14,0.00020273,2]
[349830299,1737454251229,-185.78187853,0.00020273,2]
[349830300,1737454251241,-314.21812147,0.00020273,2]
[349830301,1737454251250,-500.0,0.00020273,2]
[349830302,1737454251266,-500.0,0.00020273,2]
[349830303,1737454251277,-150.0,0.00020325,2]
[349830304,1737454251287,-22198.83544645,0.00020332,2]
[349830305,1737454251297,-1000.0,0.00020348,2]
[349830306,1737454251305,-596.02,0.00020356,2]
[349830307,1737454251315,-1960.87,0.00020356,2]
[349830308,1737454251324,-591.7,0.00020356,2]
[349830309,1737454251332,-480.7502708,0.00020383,2]
[349830310,1737454251341,-313.16134624,0.00020398,2]
[349830311,1737454251350,-150.0,0.00020424,2]
[349830312,1737454251361,-965.93,0.00020446,2]
[349830313,1737454251370,-663.48,0.00020446,2]
[349830314,1737454251379,-500.0,0.00020446,2]
[349830315,1737454251389,-500.0,0.00020446,2]
[349830316,1737454251398,-128.69549643,0.00020446,2]
[349830317,1737454251409,-837.65450357,0.00020446,2]
[349830318,1737454251418,-1279.46,0.00020446,2]
[349830319,1737454251427,-939.57,0.00020446,2]
[349830320,1737454251436,-1512.95,0.00020446,2]
[349830321,1737454251445,-1074.91,0.00020446,2]
[349830322,1737454251454,-500.0,0.00020446,2]
[349830323,1737454251463,-397.42770881,0.00020446,2]
[349830324,1737454251474,-312.81229119,0.00020446,2]
[349830325,1737454251483,-222.41221033,0.00020446,2]
[349830326,1737454251499,-611.55778967,0.00020446,2]
[349830327,1737454251508,-1097.55182677,0.00020446,2]
[349830328,1737454251531,-159.10817323,0.00020446,2]
[349830329,1737454251541,-1079.78912477,0.00020446,2]
[349830330,1737454251659,-500.0,0.00019665,2]
[349830331,1737454251669,-500.0,0.00019939,2]
[349830332,1737454251679,-500.0,0.00020211,2]
[349830333,1737454251688,-149.538,0.00020213,2]
[349830334,1737454251706,-350.462,0.00020213,2]
[349830335,1737454251716,-816.16087523,0.00020446,2]
[349830336,1737454251725,-702.49,0.00020446,2]
[349830337,1737454251734,-665.98,0.00020446,2]
[349830338,1737454251743,-500.0,0.00020446,2]
[349830339,1737454251753,-1791.51,0.00020446,2]
[349830340,1737454251762,-500.0,0.00020446,2]
[349830341,1737454251775,-500.0,0.00020446,2]
[349830342,1737454251788,-500.0,0.00020446,2]
[349830343,1737454251802,-500.0,0.00020446,2]
[349830344,1737454251815,-340.76559837,0.00020446,2]
[349830345,1737454251829,-970.65,0.00020446,2]
[349830346,1737454251838,-1591.11,0.00020446,2]
[349830347,1737454251849,-500.0,0.00020446,2]
[349830348,1737454251862,-168.71504878,0.00020447,2]
[349830349,1737454251871,-773.39357062,0.00020461,2]
[349830350,1737454251881,-178.16255006,0.00020476,2]
[349830351,1737454251890,-150.0,0.00020483,2]
[349830352,1737454251899,-7157.9483007,0.00020484,2]
[349830353,1737454251911,-562.11179002,0.00020484,2]
[349830354,1737454251920,-160.08350929,0.00020485,2]
[349830355,1737454251932,-339.91649071,0.00020485,2]
[349830356,1737454251941,-500.0,0.00020485,2]
[349830357,1737454251951,-500.0,0.00020485,2]
[349830358,1737454251961,-500.0,0.00020485,2]
[349830359,1737454251971,-1444.87,0.00020486,2]
[349830360,1737454251980,-931.98,0.00020486,2]
[349830361,1737454251990,-500.0,0.00020486,2]
[349830362,1737454251999,-1233.88,0.00020486,2]
[349830363,1737454252009,-500.0,0.00020486,2]
[349830364,1737454252018,-557.087348,0.00020486,2]
[349830365,1737454252028,-5777.13,0.00020486,2]
[349830366,1737454252038,-500.0,0.00020486,2]
[349830367,1737454252047,-807.59,0.00020486,2]
[349830368,1737454252056,-500.0,0.00020486,2]
[349830369,1737454252065,-354.390277,0.00020486,2]
[349830370,1737454252074,-1150.51,0.00020486,2]
[349830371,1737454252087,-527.99,0.00020486,2]
[349830372,1737454252096,-998.51,0.00020486,2]
[349830373,1737454252105,-639.84,0.00020486,2]
[349830374,1737454252116,-808.41,0.00020486,2]
[349830375,1737454252125,-500.0,0.00020486,2]
[349830376,1737454252135,-500.0,0.00020486,2]
[349830377,1737454252144,-1883.4,0.00020486,2]
[349830378,1737454252154,-1189.6,0.00020486,2]
[349830379,1737454252164,-670.62,0.00020486,2]
[349830380,1737454252174,-824.54,0.00020486,2]
[349830381,1737454252183,-1536.37,0.00020486,2]
[349830382,1737454252193,-1914.15,0.00020486,2]
[349830383,1737454252202,-500.0,0.00020486,2]
[349830384,1737454252212,-1038.28,0.00020486,2]
[349830385,1737454252222,-719.19,0.00020486,2]
[349830386,1737454252231,-1814.31,0.00020486,2]
[349830387,1737454252240,-641.4,0.00020486,2]
[349830388,1737454252250,-632.0,0.00020486,2]
[349830389,1737454252259,-507.76,0.00020486,2]
[349830390,1737454252268,-500.0,0.00020487,2]
[349830391,1737454252277,-500.0,0.00020487,2]
[349830392,1737454252287,-649.94,0.00020487,2]
[349830393,1737454252297,-500.0,0.00020487,2]
[349830394,1737454252306,-500.0,0.00020487,2]
[349830395,1737454252316,-500.0,0.00020487,2]
[349830396,1737454252325,-500.0,0.00020487,2]
[349830397,1737454252334,-530.19,0.00020487,2]
[349830398,1737454252343,-500.0,0.00020487,2]
[349830399,1737454252352,-500.0,0.00020487,2]
[349830400,1737454252363,-562.5781587,0.00020487,2]
[349830401,1737454252372,-500.0,0.00020487,2]
[349830402,1737454252381,-535.51513515,0.00020487,2]
[349830403,1737454252391,-500.0,0.00020487,2]
[349830404,1737454252400,-500.0,0.00020487,2]
[349830405,1737454252410,-500.0,0.00020487,2]
[349830406,1737454252419,-500.0,0.00020487,2]
[349830407,1737454252428,-500.0,0.00020487,2]
[349830408,1737454252438,-729.23,0.00020487,2]
[349830409,1737454252447,-500.0,0.00020487,2]
[349830410,1737454252457,-500.0,0.00020487,2]
[349830411,1737454252467,-594.6,0.00020487,2]
[349830412,1737454252476,-500.0,0.00020487,2]
[349830413,1737454252486,-500.0,0.00020487,2]
[349830414,1737454252496,-500.0,0.00020487,2]
[349830415,1737454252506,-500.0,0.00020487,2]
[349830416,1737454252515,-500.0,0.00020487,2]
[349830417,1737454252525,-500.0,0.00020487,2]
[349830418,1737454252535,-500.0,0.00020487,2]
[349830419,1737454252545,-500.0,0.00020487,2]
[349830420,1737454252554,-500.0,0.00020487,2]
[349830421,1737454252566,-500.0,0.00020487,2]
[349830422,1737454252576,-559.65,0.00020487,2]
[349830423,1737454252585,-500.0,0.00020487,2]
[349830424,1737454252595,-1358.41,0.00020487,2]
[349830425,1737454252604,-293.98748532,0.00020487,2]
[349830426,1737454252616,-515.52,0.00020487,2]
[349830427,1737454252625,-500.0,0.00020487,2]
[349830428,1737454252634,-500.0,0.00020487,2]
[349830429,1737454252644,-674.46,0.00020487,2]
[349830430,1737454252653,-500.0,0.00020487,2]
[349830431,1737454252663,-539.57,0.00020487,2]
[349830432,1737454252673,-527.46931831,0.00020487,2]
[349830433,1737454252682,-590.77,0.00020487,2]
[349830434,1737454252691,-675.22,0.00020487,2]
[349830435,1737454252701,-500.0,0.00020487,2]
[349830436,1737454252710,-1348.15,0.00020487,2]
[349830437,1737454252720,-246.03,0.00020487,2]
[349830438,1737454252730,-500.0,0.00020487,2]
[349830439,1737454252739,-824.53,0.00020487,2]
[349830440,1737454252750,-500.0,0.00020487,2]
[349830441,1737454252759,-500.0,0.00020487,2]
[349830442,1737454252771,-500.0,0.00020487,2]
[349830443,1737454252781,-1270.57,0.00020487,2]
[349830444,1737454252791,-500.0,0.00020487,2]